[Event "Late-Titled-Tuesday-Blitz-April-16-2024"]
[Site "Chess.com"]
[Date "2024.04.16"]
[Round "6"]
[White "Allion2017"]
[Black "azikom"]
[Result "0-1"]
[WhiteElo "2273"]
[BlackElo "2689"]
[TimeControl "180+1"]
[EndTime "15:04:13 PDT"]
[Termination "azikom won on time"]

1. d4 {[%clk 0:02:58.1]} 1... c6 {[%clk 0:03:00.9]} 2. c4 {[%clk 0:02:58.3]}
2... d5 {[%clk 0:02:59.1]} 3. Nf3 {[%clk 0:02:58.7]} 3... Nf6 {[%clk 0:02:53.2]}
4. Nc3 {[%clk 0:02:59]} 4... a6 {[%clk 0:02:53.2]} 5. c5 {[%clk 0:02:55.9]} 5...
Bf5 {[%clk 0:02:52.1]} 6. Bf4 {[%clk 0:02:52]} 6... Nbd7 {[%clk 0:02:51.2]} 7.
e3 {[%clk 0:02:48.9]} 7... Nh5 {[%clk 0:02:50.5]} 8. Bg5 {[%clk 0:02:45.8]} 8...
h6 {[%clk 0:02:49.3]} 9. Bh4 {[%clk 0:02:34.4]} 9... g5 {[%clk 0:02:47.6]} 10.
Bg3 {[%clk 0:02:17.4]} 10... Nxg3 {[%clk 0:02:46.6]} 11. hxg3 {[%clk 0:02:18]}
11... Bg7 {[%clk 0:02:47]} 12. Bd3 {[%clk 0:02:14.7]} 12... Bxd3 {[%clk
0:02:44.3]} 13. Qxd3 {[%clk 0:02:15.1]} 13... e5 {[%clk 0:02:40.8]} 14. Qf5
{[%clk 0:02:09.5]} 14... Qf6 {[%clk 0:02:23.9]} 15. Qxf6 {[%clk 0:01:59.6]}
15... Bxf6 {[%clk 0:02:24.8]} 16. O-O-O {[%clk 0:01:58.7]} 16... exd4 {[%clk
0:02:12.7]} 17. exd4 {[%clk 0:01:58]} 17... g4 {[%clk 0:02:13.1]} 18. Nh4 {[%clk
0:01:54.8]} 18... O-O-O {[%clk 0:01:44.6]} 19. Nf5 {[%clk 0:01:53.7]} 19... Kc7
{[%clk 0:01:44.1]} 20. Kc2 {[%clk 0:01:50.7]} 20... h5 {[%clk 0:01:38]} 21. Nd6
{[%clk 0:01:30.4]} 21... Rdf8 {[%clk 0:01:31]} 22. Ne2 {[%clk 0:01:30.6]} 22...
h4 {[%clk 0:01:14.7]} 23. Nf4 {[%clk 0:01:27.3]} 23... hxg3 {[%clk 0:01:13.3]}
24. fxg3 {[%clk 0:01:25.3]} 24... Rxh1 {[%clk 0:01:13.2]} 25. Rxh1 {[%clk
0:01:22.5]} 25... Bxd4 {[%clk 0:01:13.1]} 26. b4 {[%clk 0:01:20.3]} 26... Be5
{[%clk 0:01:11.5]} 27. Rh6 {[%clk 0:01:13.5]} 27... a5 {[%clk 0:01:06.8]} 28. a3
{[%clk 0:01:12.6]} 28... axb4 {[%clk 0:01:06.4]} 29. axb4 {[%clk 0:01:11.9]}
29... Nf6 {[%clk 0:00:40.2]} 30. Nf5 {[%clk 0:01:06.4]} 30... Ra8 {[%clk
0:00:26]} 31. Nd3 {[%clk 0:01:02.7]} 31... Ba1 {[%clk 0:00:19.4]} 32. Kb3 {[%clk
0:00:57.9]} 32... Ne4 {[%clk 0:00:17.5]} 33. Rh7 {[%clk 0:00:49.6]} 33... Ng5
{[%clk 0:00:17.3]} 34. Rh5 {[%clk 0:00:46.5]} 34... Ne6 {[%clk 0:00:16]} 35. Rh7
{[%clk 0:00:41.3]} 35... Rf8 {[%clk 0:00:14.1]} 36. Rh4 {[%clk 0:00:32]} 36...
Nd4+ {[%clk 0:00:09.8]} 37. Ka2 {[%clk 0:00:28]} 37... Nxf5 {[%clk 0:00:08.9]}
38. Rxg4 {[%clk 0:00:23.4]} 38... Bc3 {[%clk 0:00:08.1]} 39. Kb3 {[%clk
0:00:21.9]} 39... Bd2 {[%clk 0:00:08.1]} 40. Ne5 {[%clk 0:00:18.6]} 40... Bh6
{[%clk 0:00:06.8]} 41. Nf3 {[%clk 0:00:15.5]} 41... Bg7 {[%clk 0:00:05.9]} 42.
Rg5 {[%clk 0:00:12.4]} 42... Nd4+ {[%clk 0:00:05.7]} 43. Nxd4 {[%clk 0:00:10.9]}
43... Bxd4 {[%clk 0:00:06.6]} 44. Rf5 {[%clk 0:00:10.6]} 44... Bg7 {[%clk
0:00:06.5]} 45. g4 {[%clk 0:00:10.2]} 45... Bd4 {[%clk 0:00:06.5]} 46. g5 {[%clk
0:00:10.3]} 46... Kd7 {[%clk 0:00:07]} 47. g4 {[%clk 0:00:09.3]} 47... Bg7
{[%clk 0:00:06.7]} 48. Kc2 {[%clk 0:00:08]} 48... Ke6 {[%clk 0:00:06.8]} 49. Kd3
{[%clk 0:00:08]} 49... Rh8 {[%clk 0:00:07.1]} 50. Ke3 {[%clk 0:00:05.8]} 50...
Rh3+ {[%clk 0:00:07.3]} 51. Kd2 {[%clk 0:00:02.3]} 51... Rb3 {[%clk 0:00:08.2]}
0-1

[Event "Late-Titled-Tuesday-Blitz-April-16-2024"]
[Site "Chess.com"]
[Date "2024.04.16"]
[Round "6"]
[White "mishanick"]
[Black "Hikaru"]
[Result "0-1"]
[WhiteElo "3052"]
[BlackElo "3281"]
[TimeControl "180+1"]
[EndTime "15:04:15 PDT"]
[Termination "Hikaru won on time"]

1. d4 {[%clk 0:02:45.6]} 1... d5 {[%clk 0:02:56.4]} 2. c4 {[%clk 0:02:46.1]}
2... c6 {[%clk 0:02:56.8]} 3. Nf3 {[%clk 0:02:46.3]} 3... Nf6 {[%clk 0:02:56.8]}
4. Nc3 {[%clk 0:02:47.1]} 4... e6 {[%clk 0:02:53.8]} 5. Bg5 {[%clk 0:02:47.3]}
5... Nbd7 {[%clk 0:02:53.7]} 6. e3 {[%clk 0:02:47.3]} 6... h6 {[%clk 0:02:54]}
7. Bh4 {[%clk 0:02:47]} 7... Bd6 {[%clk 0:02:51.8]} 8. Bd3 {[%clk 0:02:47.1]}
8... dxc4 {[%clk 0:02:47.8]} 9. Bxc4 {[%clk 0:02:48]} 9... b5 {[%clk 0:02:47.6]}
10. Bd3 {[%clk 0:02:47.2]} 10... Bb7 {[%clk 0:02:47.8]} 11. O-O {[%clk
0:02:41.7]} 11... a6 {[%clk 0:02:46.3]} 12. a4 {[%clk 0:02:41.8]} 12... Be7
{[%clk 0:02:39.6]} 13. e4 {[%clk 0:02:36.8]} 13... b4 {[%clk 0:02:37.9]} 14. Ne2
{[%clk 0:02:34.9]} 14... c5 {[%clk 0:02:38.2]} 15. e5 {[%clk 0:02:29.4]} 15...
Nh5 {[%clk 0:02:30.2]} 16. Bxe7 {[%clk 0:02:12.5]} 16... Qxe7 {[%clk 0:02:30.5]}
17. Nd2 {[%clk 0:02:09.9]} 17... cxd4 {[%clk 0:02:24]} 18. f4 {[%clk 0:02:06.9]}
18... g5 {[%clk 0:02:16.5]} 19. Nc4 {[%clk 0:02:04.9]} 19... O-O {[%clk
0:02:16.7]} 20. Nd6 {[%clk 0:01:20.7]} 20... Bd5 {[%clk 0:02:14.9]} 21. Be4
{[%clk 0:01:04.6]} 21... d3 {[%clk 0:01:36.1]} 22. Qxd3 {[%clk 0:00:43.2]} 22...
Nc5 {[%clk 0:01:35.2]} 23. Qe3 {[%clk 0:00:31.2]} 23... Nxe4 {[%clk 0:01:31.1]}
24. Nxe4 {[%clk 0:00:32.1]} 24... Qa7 {[%clk 0:01:31.2]} 25. Nc5 {[%clk
0:00:27.3]} 25... Bc4 {[%clk 0:01:28]} 26. Rac1 {[%clk 0:00:23.2]} 26... Bxe2
{[%clk 0:01:21]} 27. Qxe2 {[%clk 0:00:23.3]} 27... Nxf4 {[%clk 0:01:21.7]} 28.
Qg4 {[%clk 0:00:10.4]} 28... Rac8 {[%clk 0:01:13.3]} 29. Rxf4 {[%clk 0:00:02]}
29... Rxc5 {[%clk 0:01:13.2]} 30. Rcf1 {[%clk 0:00:02.9]} 30... Rc1+ {[%clk
0:00:50.2]} 31. Kh1 {[%clk 0:00:03.5]} 31... Qe3 {[%clk 0:00:50.1]} 32. Rf6
{[%clk 0:00:03.4]} 32... Rxf1+ {[%clk 0:00:37.3]} 33. Rxf1 {[%clk 0:00:03.1]}
33... Qxe5 {[%clk 0:00:38.2]} 34. Qxb4 {[%clk 0:00:02.8]} 34... Rd8 {[%clk
0:00:36.8]} 35. Qe7 {[%clk 0:00:02.9]} 35... Rf8 {[%clk 0:00:36.5]} 36. h3
{[%clk 0:00:02.5]} 36... Qxb2 {[%clk 0:00:36.1]} 37. Qd6 {[%clk 0:00:02.9]}
37... a5 {[%clk 0:00:32.1]} 38. Qc5 {[%clk 0:00:02]} 38... Qb4 {[%clk
0:00:31.9]} 39. Qc2 {[%clk 0:00:02.2]} 39... Qd4 {[%clk 0:00:25.7]} 40. Qc6
{[%clk 0:00:02.3]} 40... Kg7 {[%clk 0:00:21.1]} 41. Qb5 {[%clk 0:00:01.3]} 41...
Qc3 {[%clk 0:00:20.7]} 42. Qd7 {[%clk 0:00:01.5]} 42... Qc4 {[%clk 0:00:19]} 43.
Rf3 {[%clk 0:00:01.9]} 43... Qc1+ {[%clk 0:00:18.5]} 44. Kh2 {[%clk 0:00:02.3]}
44... Qc5 {[%clk 0:00:19.3]} 45. Kh1 {[%clk 0:00:02.9]} 45... Qe5 {[%clk
0:00:19.6]} 46. Qc6 {[%clk 0:00:03]} 46... h5 {[%clk 0:00:20.1]} 47. Rf1 {[%clk
0:00:03.3]} 47... Rd8 {[%clk 0:00:19.7]} 48. Qb7 {[%clk 0:00:03.4]} 48... Rf8
{[%clk 0:00:20]} 49. Qb3 {[%clk 0:00:03.7]} 49... g4 {[%clk 0:00:20.3]} 50. Qd3
{[%clk 0:00:04.2]} 50... f5 {[%clk 0:00:20.4]} 51. Qd7+ {[%clk 0:00:03.9]} 51...
Rf7 {[%clk 0:00:20.8]} 52. Qd3 {[%clk 0:00:04.8]} 52... Qd5 {[%clk 0:00:20.9]}
53. Qc3+ {[%clk 0:00:05]} 53... Kg6 {[%clk 0:00:21.5]} 54. h4 {[%clk 0:00:04.7]}
54... Qd8 {[%clk 0:00:20.1]} 55. Qg3 {[%clk 0:00:04.2]} 55... Qf6 {[%clk
0:00:19.3]} 56. Re1 {[%clk 0:00:03.1]} 56... f4 {[%clk 0:00:19.3]} 57. Qd3+
{[%clk 0:00:03.3]} 57... Kg7 {[%clk 0:00:20]} 58. Kg1 {[%clk 0:00:02.2]} 58...
f3 {[%clk 0:00:20.6]} 59. gxf3 {[%clk 0:00:02.1]} 59... gxf3 {[%clk 0:00:21.5]}
60. Re4 {[%clk 0:00:02.1]} 60... Qg6+ {[%clk 0:00:21.6]} 61. Kf2 {[%clk
0:00:02.2]} 61... Qg2+ {[%clk 0:00:22.3]} 62. Ke3 {[%clk 0:00:03.1]} 62... Qg1+
{[%clk 0:00:22.6]} 63. Kd2 {[%clk 0:00:03.7]} 63... f2 {[%clk 0:00:18.7]} 64.
Qd4+ {[%clk 0:00:03.8]} 64... Kh7 {[%clk 0:00:18.8]} 65. Rxe6 {[%clk 0:00:02.7]}
65... f1=N+ {[%clk 0:00:18.6]} 0-1

[Event "Late-Titled-Tuesday-Blitz-April-16-2024"]
[Site "Chess.com"]
[Date "2024.04.16"]
[Round "6"]
[White "Binary010"]
[Black "DeArron_Fox"]
[Result "1-0"]
[WhiteElo "2782"]
[BlackElo "2578"]
[TimeControl "180+1"]
[EndTime "15:04:22 PDT"]
[Termination "Binary010 won by resignation"]

1. e4 {[%clk 0:03:00.9]} 1... c5 {[%clk 0:02:59.9]} 2. Nf3 {[%clk 0:03:01.2]}
2... e6 {[%clk 0:02:59.9]} 3. d4 {[%clk 0:03:01.5]} 3... cxd4 {[%clk 0:03:00.8]}
4. Nxd4 {[%clk 0:03:02.3]} 4... a6 {[%clk 0:03:00.6]} 5. Bd3 {[%clk 0:03:01.2]}
5... Bc5 {[%clk 0:03:00.1]} 6. Nb3 {[%clk 0:03:01.6]} 6... Ba7 {[%clk
0:03:00.7]} 7. Qe2 {[%clk 0:03:01.7]} 7... Ne7 {[%clk 0:03:01]} 8. Be3 {[%clk
0:03:02.1]} 8... O-O {[%clk 0:02:58.9]} 9. Nc3 {[%clk 0:03:02.4]} 9... Nbc6
{[%clk 0:02:55.5]} 10. O-O-O {[%clk 0:03:02.1]} 10... b5 {[%clk 0:02:52.9]} 11.
Bxa7 {[%clk 0:02:56]} 11... Rxa7 {[%clk 0:02:53.8]} 12. Qe3 {[%clk 0:02:56.4]}
12... b4 {[%clk 0:02:49.3]} 13. Na4 {[%clk 0:02:55.3]} 13... d5 {[%clk
0:02:49.7]} 14. exd5 {[%clk 0:02:36]} 14... Nxd5 {[%clk 0:02:48.4]} 15. Qh3
{[%clk 0:02:36.1]} 15... g6 {[%clk 0:02:41.2]} 16. Be4 {[%clk 0:02:34.4]} 16...
Na5 {[%clk 0:02:08.9]} 17. Kb1 {[%clk 0:02:22.6]} 17... Bd7 {[%clk 0:01:55.2]}
18. Nac5 {[%clk 0:02:21.5]} 18... Nxb3 {[%clk 0:01:44]} 19. axb3 {[%clk
0:02:20.6]} 19... a5 {[%clk 0:01:16.6]} 20. Bxd5 {[%clk 0:02:17.3]} 20... exd5
{[%clk 0:01:16.4]} 21. Qe3 {[%clk 0:02:13.1]} 21... Re8 {[%clk 0:00:36]} 22. Qd4
{[%clk 0:02:10.2]} 22... Qb6 {[%clk 0:00:10.6]} 23. Nxd7 {[%clk 0:01:38.4]}
23... Qxd4 {[%clk 0:00:09.7]} 24. Rxd4 {[%clk 0:01:39.3]} 24... Rxd7 {[%clk
0:00:09.8]} 25. Rhd1 {[%clk 0:01:24.6]} 25... Kg7 {[%clk 0:00:05.2]} 26. Kc1
{[%clk 0:01:11.5]} 26... Re2 {[%clk 0:00:04.5]} 27. R4d2 {[%clk 0:01:10]} 27...
Rxd2 {[%clk 0:00:04.9]} 28. Kxd2 {[%clk 0:01:08.3]} 28... Kf6 {[%clk 0:00:05.3]}
29. Ra1 {[%clk 0:01:08.1]} 29... Ra7 {[%clk 0:00:04.6]} 30. Kd3 {[%clk
0:00:58.3]} 30... Ke5 {[%clk 0:00:05]} 31. g3 {[%clk 0:00:55.2]} 31... Kd6
{[%clk 0:00:04.4]} 32. Kd4 {[%clk 0:00:54.4]} 32... Rc7 {[%clk 0:00:02.6]} 33.
c3 {[%clk 0:00:46.1]} 33... bxc3 {[%clk 0:00:02.7]} 34. bxc3 {[%clk 0:00:47]}
34... Rb7 {[%clk 0:00:03.1]} 35. Rxa5 {[%clk 0:00:45]} 35... Rxb3 {[%clk
0:00:03.1]} 36. Rxd5+ {[%clk 0:00:45.1]} 36... Ke7 {[%clk 0:00:02.7]} 37. Re5+
{[%clk 0:00:43.1]} 37... Kd6 {[%clk 0:00:03.1]} 38. Re2 {[%clk 0:00:43]} 38...
Ra3 {[%clk 0:00:02.3]} 39. c4 {[%clk 0:00:41.9]} 39... Ra4 {[%clk 0:00:02.6]}
40. g4 {[%clk 0:00:38.3]} 40... Ra5 {[%clk 0:00:01.5]} 41. h4 {[%clk 0:00:37.8]}
41... Ra4 {[%clk 0:00:01.9]} 42. Rb2 {[%clk 0:00:30.6]} 42... Ra3 {[%clk
0:00:02.3]} 43. Rb6+ {[%clk 0:00:28.3]} 43... Ke7 {[%clk 0:00:01.9]} 44. Rb7+
{[%clk 0:00:26.5]} 44... Ke6 {[%clk 0:00:02.5]} 45. Rb6+ {[%clk 0:00:25.2]}
45... Ke7 {[%clk 0:00:02.5]} 46. Ke4 {[%clk 0:00:25.2]} 46... Rc3 {[%clk
0:00:02.5]} 47. Rc6 {[%clk 0:00:25.5]} 47... Kd7 {[%clk 0:00:02.7]} 48. Rc5
{[%clk 0:00:17.4]} 48... Kd6 {[%clk 0:00:03.1]} 49. Rd5+ {[%clk 0:00:17.7]}
49... Ke6 {[%clk 0:00:03.6]} 50. Rd4 {[%clk 0:00:17.1]} 50... Rc2 {[%clk
0:00:01.8]} 51. f3 {[%clk 0:00:14]} 51... f5+ {[%clk 0:00:01.7]} 52. gxf5+
{[%clk 0:00:13.4]} 52... gxf5+ {[%clk 0:00:02.6]} 53. Kd3 {[%clk 0:00:13.6]}
53... Rf2 {[%clk 0:00:02.3]} 54. Ke3 {[%clk 0:00:11.7]} 54... Rh2 {[%clk
0:00:02.9]} 55. c5 {[%clk 0:00:11]} 55... Ke5 {[%clk 0:00:02.6]} 56. f4+ {[%clk
0:00:10.7]} 56... Ke6 {[%clk 0:00:02.5]} 57. Rd6+ {[%clk 0:00:11.2]} 57... Ke7
{[%clk 0:00:02.4]} 58. Rh6 {[%clk 0:00:11.3]} 58... Rc2 {[%clk 0:00:01.7]} 59.
Rxh7+ {[%clk 0:00:10.7]} 59... Ke6 {[%clk 0:00:02.6]} 60. c6 {[%clk 0:00:09.3]}
60... Kd5 {[%clk 0:00:02.3]} 61. c7 {[%clk 0:00:09.2]} 61... Rc3+ {[%clk
0:00:02.9]} 62. Kd2 {[%clk 0:00:09.4]} 62... Rc6 {[%clk 0:00:02.9]} 63. Kd3
{[%clk 0:00:08.6]} 63... Rc1 {[%clk 0:00:02.7]} 64. h5 {[%clk 0:00:08.8]} 64...
Rd1+ {[%clk 0:00:02.4]} 65. Kc2 {[%clk 0:00:09.1]} 1-0

[Event "Late-Titled-Tuesday-Blitz-April-16-2024"]
[Site "Chess.com"]
[Date "2024.04.16"]
[Round "6"]
[White "Durarbayli"]
[Black "Revan_2002"]
[Result "1/2-1/2"]
[WhiteElo "2880"]
[BlackElo "2742"]
[TimeControl "180+1"]
[EndTime "15:04:24 PDT"]
[Termination "Game drawn by stalemate"]

1. e4 {[%clk 0:03:00.9]} 1... e5 {[%clk 0:02:59.6]} 2. Nf3 {[%clk 0:03:00.3]}
2... Nc6 {[%clk 0:03:00.2]} 3. d4 {[%clk 0:03:00.9]} 3... exd4 {[%clk
0:02:56.8]} 4. Nxd4 {[%clk 0:03:01.8]} 4... Bc5 {[%clk 0:02:56.9]} 5. Nb3 {[%clk
0:03:01.7]} 5... Bb6 {[%clk 0:02:57]} 6. Qe2 {[%clk 0:03:02.3]} 6... Nf6 {[%clk
0:02:55.4]} 7. e5 {[%clk 0:03:01.6]} 7... Nd5 {[%clk 0:02:39.9]} 8. c4 {[%clk
0:03:01.3]} 8... Nde7 {[%clk 0:02:34]} 9. c5 {[%clk 0:02:58.7]} 9... Ba5+ {[%clk
0:02:33]} 10. Nxa5 {[%clk 0:02:56.9]} 10... Nxa5 {[%clk 0:02:33.9]} 11. Bg5
{[%clk 0:02:48.5]} 11... O-O {[%clk 0:02:32.5]} 12. Nc3 {[%clk 0:02:46.2]} 12...
Qe8 {[%clk 0:02:28.7]} 13. O-O-O {[%clk 0:02:35.4]} 13... Nac6 {[%clk
0:02:28.1]} 14. f4 {[%clk 0:02:32.1]} 14... b6 {[%clk 0:02:24.4]} 15. Qf2 {[%clk
0:02:20.1]} 15... h6 {[%clk 0:02:09.3]} 16. Bh4 {[%clk 0:02:10.4]} 16... Nf5
{[%clk 0:02:09]} 17. Nd5 {[%clk 0:02:04.2]} 17... Qe6 {[%clk 0:01:34.8]} 18. Bc4
{[%clk 0:01:59.3]} 18... Qg6 {[%clk 0:01:26.3]} 19. Bd3 {[%clk 0:01:38.1]} 19...
Qg4 {[%clk 0:01:12.7]} 20. Bf6 {[%clk 0:01:24.5]} 20... bxc5 {[%clk 0:01:02.1]}
21. Be2 {[%clk 0:01:08.9]} 21... Qg6 {[%clk 0:01:01.4]} 22. g4 {[%clk
0:01:09.5]} 22... Nfd4 {[%clk 0:00:45]} 23. Bd3 {[%clk 0:01:05.7]} 23... gxf6
{[%clk 0:00:15.2]} 24. Bxg6 {[%clk 0:00:51.5]} 24... fxg6 {[%clk 0:00:16.1]} 25.
exf6 {[%clk 0:00:51.3]} 25... d6 {[%clk 0:00:11.7]} 26. f5 {[%clk 0:00:46]}
26... g5 {[%clk 0:00:06.1]} 27. h4 {[%clk 0:00:45.4]} 27... Ne5 {[%clk
0:00:05.5]} 28. hxg5 {[%clk 0:00:39.7]} 28... Nxg4 {[%clk 0:00:05.7]} 29. Qf4
{[%clk 0:00:29.3]} 29... Ne2+ {[%clk 0:00:04.9]} 30. Kd2 {[%clk 0:00:19.7]}
30... Nxf4 {[%clk 0:00:05.8]} 31. Nxf4 {[%clk 0:00:20.2]} 31... Bxf5 {[%clk
0:00:05.8]} 32. Nd5 {[%clk 0:00:17.6]} 32... Kf7 {[%clk 0:00:04.3]} 33. gxh6
{[%clk 0:00:17.1]} 33... Nxf6 {[%clk 0:00:03.3]} 34. Nxc7 {[%clk 0:00:17.5]}
34... Rab8 {[%clk 0:00:02.4]} 35. b3 {[%clk 0:00:16]} 35... Rbc8 {[%clk
0:00:02.6]} 36. Nb5 {[%clk 0:00:16.4]} 36... Bd7 {[%clk 0:00:02.8]} 37. Nxd6+
{[%clk 0:00:16.1]} 37... Kg6 {[%clk 0:00:03.4]} 38. Rdg1+ {[%clk 0:00:15.8]}
38... Bg4 {[%clk 0:00:01.4]} 39. Nxc8 {[%clk 0:00:14.6]} 39... Rxc8 {[%clk
0:00:02.3]} 40. h7 {[%clk 0:00:14.9]} 40... Rh8 {[%clk 0:00:02.8]} 41. Rh4
{[%clk 0:00:15.3]} 41... Rxh7 {[%clk 0:00:02.6]} 42. Rgxg4+ {[%clk 0:00:15.9]}
42... Nxg4 {[%clk 0:00:03]} 43. Rxg4+ {[%clk 0:00:16.8]} 43... Kf5 {[%clk
0:00:03.6]} 44. Rc4 {[%clk 0:00:17.4]} 44... Rc7 {[%clk 0:00:03.4]} 45. Kc3
{[%clk 0:00:17.8]} 45... Ke5 {[%clk 0:00:03.2]} 46. Rh4 {[%clk 0:00:18]} 46...
Kd5 {[%clk 0:00:03.5]} 47. Rh5+ {[%clk 0:00:18.7]} 47... Kc6 {[%clk 0:00:03.9]}
48. Kc4 {[%clk 0:00:19.6]} 48... Kb6 {[%clk 0:00:03.9]} 49. Rh6+ {[%clk
0:00:20.2]} 49... Rc6 {[%clk 0:00:03.9]} 50. Rh5 {[%clk 0:00:19.8]} 50... Rg6
{[%clk 0:00:03.1]} 51. Rh4 {[%clk 0:00:20.3]} 51... Rf6 {[%clk 0:00:03.2]} 52.
a3 {[%clk 0:00:19.6]} 52... Rg6 {[%clk 0:00:03]} 53. Re4 {[%clk 0:00:19.3]}
53... Rh6 {[%clk 0:00:03.1]} 54. Kd5 {[%clk 0:00:19.5]} 54... Rh5+ {[%clk
0:00:03]} 55. Kc4 {[%clk 0:00:19.8]} 55... Rh6 {[%clk 0:00:03.5]} 56. Rf4 {[%clk
0:00:20.4]} 56... Rg6 {[%clk 0:00:04]} 57. Rh4 {[%clk 0:00:20.1]} 57... Rf6
{[%clk 0:00:04.3]} 58. Rg4 {[%clk 0:00:20.8]} 58... Rh6 {[%clk 0:00:04.6]} 59.
Kd5 {[%clk 0:00:20.6]} 59... Rh5+ {[%clk 0:00:04.5]} 60. Kc4 {[%clk 0:00:21]}
60... Rh6 {[%clk 0:00:05]} 61. b4 {[%clk 0:00:21.6]} 61... cxb4 {[%clk
0:00:04.7]} 62. Kxb4 {[%clk 0:00:22.5]} 62... a6 {[%clk 0:00:05.1]} 63. a4
{[%clk 0:00:23.1]} 63... a5+ {[%clk 0:00:05]} 64. Kc4 {[%clk 0:00:23.3]} 64...
Rc6+ {[%clk 0:00:05.5]} 65. Kb3 {[%clk 0:00:22.9]} 65... Rc5 {[%clk 0:00:05.5]}
66. Rg3 {[%clk 0:00:23.5]} 66... Rc6 {[%clk 0:00:06.2]} 67. Rg5 {[%clk
0:00:23.8]} 67... Rc5 {[%clk 0:00:06.3]} 68. Rg8 {[%clk 0:00:24.4]} 68... Rc6
{[%clk 0:00:06.9]} 69. Rb8+ {[%clk 0:00:25]} 69... Ka6 {[%clk 0:00:07.3]} 70.
Rb5 {[%clk 0:00:25.9]} 70... Rb6 {[%clk 0:00:07.5]} 71. Kc4 {[%clk 0:00:26.2]}
71... Rxb5 {[%clk 0:00:07.6]} 72. axb5+ {[%clk 0:00:27.1]} 72... Kb6 {[%clk
0:00:08.5]} 73. Kb3 {[%clk 0:00:27.6]} 73... Kxb5 {[%clk 0:00:09.4]} 74. Ka3
{[%clk 0:00:28.5]} 74... a4 {[%clk 0:00:10.3]} 75. Ka2 {[%clk 0:00:29.4]} 75...
Kb4 {[%clk 0:00:11.1]} 76. Ka1 {[%clk 0:00:30.3]} 76... a3 {[%clk 0:00:12]} 77.
Ka2 {[%clk 0:00:31.2]} 77... Ka4 {[%clk 0:00:12.2]} 78. Ka1 {[%clk 0:00:32.1]}
78... Kb3 {[%clk 0:00:13.1]} 79. Kb1 {[%clk 0:00:33]} 79... a2+ {[%clk 0:00:14]}
80. Ka1 {[%clk 0:00:33.9]} 80... Ka3 {[%clk 0:00:14.9]} 1/2-1/2

[Event "Late-Titled-Tuesday-Blitz-April-16-2024"]
[Site "Chess.com"]
[Date "2024.04.16"]
[Round "6"]
[White "diokletian"]
[Black "GiorgianBarbosa"]
[Result "1-0"]
[WhiteElo "2672"]
[BlackElo "2462"]
[TimeControl "180+1"]
[EndTime "15:04:24 PDT"]
[Termination "diokletian won by resignation"]

1. Nf3 {[%clk 0:01:22.2]} 1... Nf6 {[%clk 0:02:58.5]} 2. c4 {[%clk 0:01:22.1]}
2... e6 {[%clk 0:02:58.2]} 3. Nc3 {[%clk 0:01:22.1]} 3... d5 {[%clk 0:02:59.1]}
4. d4 {[%clk 0:01:22.3]} 4... Be7 {[%clk 0:02:58.6]} 5. Bf4 {[%clk 0:01:22.4]}
5... O-O {[%clk 0:02:58.4]} 6. e3 {[%clk 0:01:22.2]} 6... c6 {[%clk 0:02:54.7]}
7. h3 {[%clk 0:01:21.4]} 7... b6 {[%clk 0:02:52.9]} 8. Rc1 {[%clk 0:01:21.1]}
8... Bb7 {[%clk 0:02:53.3]} 9. a3 {[%clk 0:01:21.1]} 9... Nbd7 {[%clk
0:02:51.8]} 10. Bd3 {[%clk 0:01:20.4]} 10... Re8 {[%clk 0:02:49]} 11. cxd5
{[%clk 0:01:20.4]} 11... exd5 {[%clk 0:02:46.2]} 12. O-O {[%clk 0:01:20.3]}
12... Nf8 {[%clk 0:02:46.3]} 13. Ne5 {[%clk 0:01:17.8]} 13... N6d7 {[%clk
0:02:42.5]} 14. Qg4 {[%clk 0:00:57]} 14... Nxe5 {[%clk 0:02:35.5]} 15. Bxe5
{[%clk 0:00:57]} 15... f6 {[%clk 0:02:25.4]} 16. Bf4 {[%clk 0:00:56.2]} 16...
Bd6 {[%clk 0:02:21.5]} 17. Bxd6 {[%clk 0:00:52]} 17... Qxd6 {[%clk 0:02:22.4]}
18. Rc2 {[%clk 0:00:49.3]} 18... Re7 {[%clk 0:02:06.6]} 19. Rfc1 {[%clk
0:00:48.4]} 19... Rae8 {[%clk 0:02:06.5]} 20. Ne2 {[%clk 0:00:47.7]} 20... g6
{[%clk 0:02:00.2]} 21. Qg3 {[%clk 0:00:47.4]} 21... Qd7 {[%clk 0:01:51]} 22. h4
{[%clk 0:00:46.4]} 22... f5 {[%clk 0:01:47.6]} 23. b4 {[%clk 0:00:45.7]} 23...
b5 {[%clk 0:01:41.9]} 24. Nf4 {[%clk 0:00:41.9]} 24... a6 {[%clk 0:01:38.4]} 25.
h5 {[%clk 0:00:41.6]} 25... Rg7 {[%clk 0:01:35.4]} 26. Qh3 {[%clk 0:00:39.2]}
26... Ne6 {[%clk 0:01:26.4]} 27. h6 {[%clk 0:00:29.8]} 27... Nxf4 {[%clk
0:01:20.2]} 28. exf4 {[%clk 0:00:30]} 28... Rge7 {[%clk 0:01:19.2]} 29. Qh4
{[%clk 0:00:30]} 29... Qd6 {[%clk 0:01:19.2]} 30. Kf1 {[%clk 0:00:25.7]} 30...
Re6 {[%clk 0:01:10.2]} 31. Re2 {[%clk 0:00:23.2]} 31... Rxe2 {[%clk 0:01:05.5]}
32. Bxe2 {[%clk 0:00:23.5]} 32... Qe7 {[%clk 0:01:06.4]} 33. Qxe7 {[%clk
0:00:23.4]} 33... Rxe7 {[%clk 0:01:07.3]} 34. Bd3 {[%clk 0:00:23.4]} 34... Kf7
{[%clk 0:01:05.6]} 35. g3 {[%clk 0:00:21.5]} 35... Kf6 {[%clk 0:01:05.4]} 36.
Kg2 {[%clk 0:00:21.7]} 36... Re6 {[%clk 0:00:53.1]} 37. Kf3 {[%clk 0:00:21.4]}
37... g5 {[%clk 0:00:51.3]} 38. fxg5+ {[%clk 0:00:21.6]} 38... Kxg5 {[%clk
0:00:52.2]} 39. Rh1 {[%clk 0:00:22.3]} 39... Rxh6 {[%clk 0:00:51.6]} 40. Rxh6
{[%clk 0:00:22.4]} 40... Kxh6 {[%clk 0:00:51]} 41. Bxf5 {[%clk 0:00:23]} 41...
Kg7 {[%clk 0:00:49.9]} 42. Kf4 {[%clk 0:00:22.9]} 42... h6 {[%clk 0:00:43.8]}
43. Ke5 {[%clk 0:00:23.1]} 43... Ba8 {[%clk 0:00:40.1]} 44. f4 {[%clk
0:00:21.5]} 44... Kf7 {[%clk 0:00:39.1]} 45. Kd6 {[%clk 0:00:20.9]} 45... Kf6
{[%clk 0:00:40]} 46. Bc8 {[%clk 0:00:21]} 46... h5 {[%clk 0:00:37]} 47. Kc7
{[%clk 0:00:19.9]} 47... Ke7 {[%clk 0:00:33.9]} 48. Kb8 {[%clk 0:00:19.4]} 48...
Kd8 {[%clk 0:00:34.8]} 49. Bxa6 {[%clk 0:00:18.4]} 49... c5 {[%clk 0:00:35.7]}
50. bxc5 {[%clk 0:00:17.7]} 50... Bc6 {[%clk 0:00:36.6]} 51. Ka7 {[%clk
0:00:17.5]} 51... Kc7 {[%clk 0:00:37]} 52. f5 {[%clk 0:00:17]} 52... Bd7 {[%clk
0:00:29.8]} 53. f6 {[%clk 0:00:16.8]} 53... Be8 {[%clk 0:00:28.5]} 54. Bxb5
{[%clk 0:00:16.5]} 54... Bf7 {[%clk 0:00:24.7]} 55. a4 {[%clk 0:00:16.3]} 55...
Bg6 {[%clk 0:00:22.1]} 56. Be2 {[%clk 0:00:14.4]} 56... Bf7 {[%clk 0:00:23]} 57.
Bf3 {[%clk 0:00:14.5]} 57... Kc6 {[%clk 0:00:22.6]} 58. a5 {[%clk 0:00:14.5]}
58... Kc7 {[%clk 0:00:23.1]} 59. a6 {[%clk 0:00:14.2]} 59... Be6 {[%clk
0:00:19.6]} 60. Bxh5 {[%clk 0:00:13.5]} 60... Kc6 {[%clk 0:00:18.6]} 61. f7
{[%clk 0:00:13.6]} 61... Kb5 {[%clk 0:00:19.5]} 62. f8=Q {[%clk 0:00:13.6]} 1-0